fUSD/lending_fUSD_20260520
["ID","MTS","AMOUNT","RATE_DAILY","PERIOD"]
[422672570,1779232233000,-500.0,0.00013389,2]
[422672581,1779232233000,-500.0,0.00013389,2]
[422672572,1779232233000,-500.0,0.00013389,2]
[422672560,1779232233000,-500.0,0.00013389,2]
[422672546,1779232233000,-500.0,0.00013389,2]
[422672542,1779232233000,-493.0,0.00013389,2]
[422672541,1779232233000,-500.0,0.00013389,2]
[422672573,1779232233000,-500.0,0.00013389,2]
[422672515,1779232233000,-500.0,0.00013389,2]
[422672514,1779232233000,-500.0,0.00013389,2]
[422672516,1779232233000,-158.14097972,0.00013389,2]
[422672518,1779232233000,-548.0811301,0.00013389,2]
[422672527,1779232233000,-500.0,0.00013389,2]
[422672517,1779232233000,-500.0,0.00013389,2]
[422672521,1779232233000,-500.0,0.00013389,2]
[422672519,1779232233000,-150.0,0.00013389,2]
[422672520,1779232233000,-500.0,0.00013389,2]
[422672528,1779232233000,-493.0,0.00013389,2]
[422672529,1779232233000,-500.0,0.00013389,2]
[422672523,1779232233000,-493.0,0.00013389,2]
[422672526,1779232233000,-500.0,0.00013389,2]
[422672525,1779232233000,-493.0,0.00013389,2]
[422672524,1779232233000,-500.0,0.00013389,2]
[422672522,1779232233000,-500.0,0.00013389,2]
[422672530,1779232233000,-500.0,0.00013389,2]
[422672531,1779232233000,-493.0,0.00013389,2]
[422672533,1779232233000,-500.0,0.00013389,2]
[422672532,1779232233000,-500.0,0.00013389,2]
[422672543,1779232233000,-500.0,0.00013389,2]
[422672537,1779232233000,-500.0,0.00013389,2]
[422672534,1779232233000,-500.0,0.00013389,2]
[422672535,1779232233000,-493.0,0.00013389,2]
[422672540,1779232233000,-500.0,0.00013389,2]
[422672538,1779232233000,-500.0,0.00013389,2]
[422672536,1779232233000,-500.0,0.00013389,2]
[422672539,1779232233000,-493.0,0.00013389,2]
[422672544,1779232233000,-500.0,0.00013389,2]
[422672574,1779232233000,-500.0,0.00013389,2]
[422672588,1779232233000,-493.58301202,0.00013389,2]
[422672577,1779232233000,-500.0,0.00013389,2]
[422672613,1779232233000,-592.0,0.00013389,2]
[422672616,1779232233000,-592.0,0.00013389,2]
[422672612,1779232233000,-592.0,0.00013389,2]
[422672611,1779232233000,-592.0,0.00013389,2]
[422672617,1779232233000,-150.0,0.00013389,2]
[422672615,1779232233000,-150.0,0.00013389,2]
[422672614,1779232233000,-592.0,0.00013389,2]
[422672620,1779232233000,-592.0,0.00013389,2]
[422672628,1779232233000,-592.0,0.00013389,2]
[422672629,1779232233000,-592.0,0.00013389,2]
[422672630,1779232233000,-592.0,0.00013389,2]
[422672619,1779232233000,-592.0,0.00013389,2]
[422672621,1779232233000,-150.0,0.00013389,2]
[422672610,1779232233000,-167.90688095,0.00013389,2]
[422672631,1779232233000,-500.0,0.00013389,2]
[422672625,1779232233000,-592.0,0.00013389,2]
[422672623,1779232233000,-200.79234034,0.00013389,2]
[422672627,1779232233000,-592.0,0.00013389,2]
[422672624,1779232233000,-592.0,0.00013389,2]
[422672626,1779232233000,-592.0,0.00013389,2]
[422672634,1779232233000,-500.0,0.00013389,2]
[422672632,1779232233000,-592.0,0.00013389,2]
[422672636,1779232233000,-592.0,0.00013389,2]
[422672633,1779232233000,-500.0,0.00013389,2]
[422672637,1779232233000,-500.0,0.00013389,2]
[422672635,1779232233000,-500.0,0.00013389,2]
[422672575,1779232233000,-500.0,0.00013389,2]
[422672638,1779232233000,-500.0,0.00013389,2]
[422672622,1779232233000,-592.0,0.00013389,2]
[422672607,1779232233000,-500.0,0.00013389,2]
[422672639,1779232233000,-500.0,0.00013389,2]
[422672618,1779232233000,-150.0,0.00013389,2]
[422672609,1779232233000,-500.0,0.00013389,2]
[422672579,1779232233000,-500.0,0.00013389,2]
[422672576,1779232233000,-500.0,0.00013389,2]
[422672580,1779232233000,-500.0,0.00013389,2]
[422672582,1779232233000,-493.0,0.00013389,2]
[422672584,1779232233000,-500.0,0.00013389,2]
[422672583,1779232233000,-500.0,0.00013389,2]
[422672586,1779232233000,-500.0,0.00013389,2]
[422672585,1779232233000,-500.0,0.00013389,2]
[422672589,1779232233000,-150.0,0.00013389,2]
[422672587,1779232233000,-500.0,0.00013389,2]
[422672593,1779232233000,-493.0,0.00013389,2]
[422672590,1779232233000,-504.11602688,0.00013389,2]
[422672591,1779232233000,-500.0,0.00013389,2]
[422672578,1779232233000,-500.0,0.00013389,2]
[422672595,1779232233000,-535.68633723,0.00013389,2]
[422672592,1779232233000,-500.0,0.00013389,2]
[422672600,1779232233000,-150.0,0.00013389,2]
[422672601,1779232233000,-210.23455429,0.00013389,2]
[422672597,1779232233000,-150.0,0.00013389,2]
[422672598,1779232233000,-150.0,0.00013389,2]
[422672603,1779232233000,-493.0,0.00013389,2]
[422672608,1779232233000,-500.0,0.00013389,2]
[422672596,1779232233000,-493.0,0.00013389,2]
[422672604,1779232233000,-493.0,0.00013389,2]
[422672599,1779232233000,-150.0,0.00013389,2]
[422672606,1779232233000,-500.0,0.00013389,2]
[422672594,1779232233000,-500.0,0.00013389,2]
[422672605,1779232233000,-506.0,0.00013389,2]
[422672602,1779232233000,-493.0,0.00013389,2]
[422672684,1779232234000,-177.01992321,0.00013424,2]
[422672685,1779232234000,-500.0,0.00013424,2]
[422672683,1779232234000,-257.14286353,0.00013424,2]
[422672680,1779232234000,-170.0,0.00013389,2]
[422672676,1779232234000,-1484.0,0.00013389,2]
[422672673,1779232234000,-1484.0,0.00013389,2]
[422672678,1779232234000,-535.59562921,0.00013389,2]
[422672672,1779232234000,-592.0,0.00013389,2]
[422672675,1779232234000,-607.99171235,0.00013389,2]
[422672686,1779232234000,-500.0,0.00013424,2]
[422672677,1779232234000,-500.0,0.00013389,2]
[422672674,1779232234000,-1484.0,0.00013389,2]
[422672688,1779232234000,-500.0,0.00013424,2]
[422672690,1779232234000,-500.0,0.00013424,2]
[422672641,1779232234000,-500.0,0.00013389,2]
[422672682,1779232234000,-150.0,0.00013424,2]
[422672687,1779232234000,-500.0,0.00013424,2]
[422672691,1779232234000,-500.0,0.00013424,2]
[422672693,1779232234000,-500.0,0.00013424,2]
[422672700,1779232234000,-500.0,0.00013424,2]
[422672694,1779232234000,-150.0,0.00013424,2]
[422672692,1779232234000,-500.0,0.00013424,2]
[422672697,1779232234000,-500.0,0.00013424,2]
[422672703,1779232234000,-243.68731367,0.00013424,2]
[422672695,1779232234000,-500.0,0.00013424,2]
[422672671,1779232234000,-1484.0,0.00013389,2]
[422672689,1779232234000,-500.0,0.00013424,2]
[422672670,1779232234000,-592.0,0.00013389,2]
[422672657,1779232234000,-1484.0,0.00013389,2]
[422672679,1779232234000,-1484.0,0.00013389,2]
[422672640,1779232234000,-592.0,0.00013389,2]
[422672643,1779232234000,-500.0,0.00013389,2]
[422672642,1779232234000,-500.0,0.00013389,2]
[422672645,1779232234000,-500.0,0.00013389,2]
[422672644,1779232234000,-500.0,0.00013389,2]
[422672647,1779232234000,-592.0,0.00013389,2]
[422672646,1779232234000,-500.0,0.00013389,2]
[422672648,1779232234000,-500.0,0.00013389,2]
[422672650,1779232234000,-1484.0,0.00013389,2]
[422672651,1779232234000,-592.0,0.00013389,2]
[422672653,1779232234000,-1484.0,0.00013389,2]
[422672654,1779232234000,-1484.0,0.00013389,2]
[422672649,1779232234000,-351.03027677,0.00013389,2]
[422672652,1779232234000,-1484.0,0.00013389,2]
[422672655,1779232234000,-1484.0,0.00013389,2]
[422672666,1779232234000,-1484.0,0.00013389,2]
[422672658,1779232234000,-1484.0,0.00013389,2]
[422672659,1779232234000,-1484.0,0.00013389,2]
[422672656,1779232234000,-1484.0,0.00013389,2]
[422672667,1779232234000,-1484.0,0.00013389,2]
[422672661,1779232234000,-1484.0,0.00013389,2]
[422672665,1779232234000,-1484.0,0.00013389,2]
[422672662,1779232234000,-1484.0,0.00013389,2]
[422672660,1779232234000,-1484.0,0.00013389,2]
[422672664,1779232234000,-1484.0,0.00013389,2]
[422672663,1779232234000,-592.0,0.00013389,2]
[422672669,1779232234000,-1484.0,0.00013389,2]
[422672668,1779232234000,-1484.0,0.00013389,2]
[422672698,1779232234000,-150.0,0.00013424,2]
[422672681,1779232234000,-1485.26779496,0.00013389,2]
[422672699,1779232234000,-500.0,0.00013424,2]
[422672743,1779232234000,-150.0,0.00013557,2]
[422672740,1779232234000,-150.0,0.00013522,2]
[422672739,1779232234000,-150.0,0.00013505,2]
[422672741,1779232234000,-150.0,0.00013535,2]
[422672734,1779232234000,-150.0,0.00013488,2]
[422672742,1779232234000,-150.0,0.00013539,2]
[422672744,1779232234000,-150.0,0.00013563,2]
[422672738,1779232234000,-150.0,0.00013488,2]
[422672737,1779232234000,-150.0,0.00013488,2]
[422672735,1779232234000,-150.0,0.00013488,2]
[422672736,1779232234000,-150.12381094,0.00013488,2]
[422672747,1779232234000,-150.0,0.00013581,2]
[422672753,1779232234000,-150.0,0.00013628,2]
[422672732,1779232234000,-150.0,0.00013488,2]
[422672752,1779232234000,-150.0,0.00013625,2]
[422672746,1779232234000,-150.0,0.00013581,2]
[422672748,1779232234000,-150.0,0.00013591,2]
[422672751,1779232234000,-150.0,0.00013624,2]
[422672750,1779232234000,-150.0,0.00013608,2]
[422672754,1779232234000,-150.0,0.00013638,2]
[422672755,1779232234000,-150.0,0.00013643,2]
[422672756,1779232234000,-150.0,0.00013654,2]
[422672757,1779232234000,-150.0,0.0001366,2]
[422672758,1779232234000,-150.0,0.00013675,2]
[422672759,1779232234000,-150.0,0.00013675,2]
[422672761,1779232234000,-150.0,0.00013694,2]
[422672760,1779232234000,-150.0,0.00013677,2]
[422672701,1779232234000,-150.0,0.00013424,2]
[422672749,1779232234000,-345.72,0.00013598,2]
[422672733,1779232234000,-150.0,0.00013488,2]
[422672696,1779232234000,-500.0,0.00013424,2]
[422672724,1779232234000,-203.8,0.00013483,2]
[422672745,1779232234000,-150.0,0.00013574,2]
[422672702,1779232234000,-500.0,0.00013424,2]
[422672704,1779232234000,-500.0,0.00013424,2]
[422672708,1779232234000,-150.6813385,0.00013424,2]
[422672706,1779232234000,-450.58795878,0.00013424,2]
[422672712,1779232234000,-500.0,0.00013424,2]
[422672705,1779232234000,-150.0,0.00013424,2]
[422672709,1779232234000,-500.0,0.00013424,2]
[422672710,1779232234000,-500.0,0.00013424,2]
[422672716,1779232234000,-203.9,0.00013483,2]
[422672711,1779232234000,-500.0,0.00013424,2]
[422672713,1779232234000,-500.0,0.00013424,2]
[422672715,1779232234000,-166.68,0.00013483,2]
[422672717,1779232234000,-203.9,0.00013483,2]
[422672707,1779232234000,-500.0,0.00013424,2]
[422672718,1779232234000,-203.9,0.00013483,2]
[422672725,1779232234000,-500.0,0.00013488,2]
[422672714,1779232234000,-514.22528082,0.00013424,2]
[422672731,1779232234000,-150.0,0.00013488,2]
[422672728,1779232234000,-150.18576381,0.00013488,2]
[422672729,1779232234000,-150.0,0.00013488,2]
[422672720,1779232234000,-203.9,0.00013483,2]
[422672726,1779232234000,-150.0,0.00013488,2]
[422672730,1779232234000,-150.00000001,0.00013488,2]
[422672719,1779232234000,-203.9,0.00013483,2]
[422672727,1779232234000,-150.0,0.00013488,2]
[422672721,1779232234000,-203.9,0.00013483,2]
[422672723,1779232234000,-203.9,0.00013483,2]
[422672722,1779232234000,-203.9,0.00013483,2]
[422672802,1779232235000,-1086.16,0.00013698,2]
[422672799,1779232235000,-1086.16,0.00013698,2]
[422672801,1779232235000,-1086.16,0.00013698,2]
[422672797,1779232235000,-1086.16,0.00013698,2]
[422672794,1779232235000,-1086.16,0.00013698,2]
[422672798,1779232235000,-1086.16,0.00013698,2]
[422672793,1779232235000,-1086.16,0.00013698,2]
[422672796,1779232235000,-1086.16,0.00013698,2]
[422672795,1779232235000,-1086.16,0.00013698,2]
[422672814,1779232235000,-166.66,0.00013699,2]
[422672800,1779232235000,-1086.16,0.00013698,2]
[422672804,1779232235000,-1086.16,0.00013698,2]
[422672820,1779232235000,-150.0,0.00013729,2]
[422672806,1779232235000,-1125.15,0.00013698,2]
[422672805,1779232235000,-1086.2246713,0.00013698,2]
[422672807,1779232235000,-500.0,0.00013698,2]
[422672808,1779232235000,-500.0,0.00013698,2]
[422672812,1779232235000,-2500.0,0.00013699,2]
[422672813,1779232235000,-719.98,0.00013699,2]
[422672811,1779232235000,-200.0,0.00013699,2]
[422672810,1779232235000,-507.15627863,0.00013698,2]
[422672809,1779232235000,-500.0,0.00013698,2]
[422672817,1779232235000,-150.0,0.00013712,2]
[422672815,1779232235000,-163.26,0.000137,2]
[422672819,1779232235000,-150.0,0.00013722,2]
[422672803,1779232235000,-1086.16,0.00013698,2]
[422672792,1779232235000,-1086.16,0.00013698,2]
[422672775,1779232235000,-500.0,0.00013698,2]
[422672790,1779232235000,-1086.16,0.00013698,2]
[422672765,1779232235000,-500.0,0.00013698,2]
[422672766,1779232235000,-500.0,0.00013698,2]
[422672762,1779232235000,-208.58623393,0.00013698,2]
[422672764,1779232235000,-500.0,0.00013698,2]
[422672763,1779232235000,-160.0,0.00013698,2]
[422672767,1779232235000,-500.0,0.00013698,2]
[422672779,1779232235000,-500.0,0.00013698,2]
[422672769,1779232235000,-150.0090512,0.00013698,2]
[422672768,1779232235000,-150.0090512,0.00013698,2]
[422672778,1779232235000,-500.0,0.00013698,2]
[422672772,1779232235000,-500.0,0.00013698,2]
[422672771,1779232235000,-150.0090512,0.00013698,2]
[422672785,1779232235000,-1086.16,0.00013698,2]
[422672773,1779232235000,-500.0,0.00013698,2]
[422672818,1779232235000,-150.0,0.00013712,2]
[422672774,1779232235000,-500.0,0.00013698,2]
[422672777,1779232235000,-500.0,0.00013698,2]
[422672782,1779232235000,-1086.16,0.00013698,2]
[422672783,1779232235000,-1086.16,0.00013698,2]
[422672784,1779232235000,-1086.16,0.00013698,2]
[422672791,1779232235000,-1086.16,0.00013698,2]
[422672780,1779232235000,-500.0,0.00013698,2]
[422672788,1779232235000,-1086.16,0.00013698,2]
[422672786,1779232235000,-1086.16,0.00013698,2]
[422672789,1779232235000,-1086.16,0.00013698,2]
[422672787,1779232235000,-1086.16,0.00013698,2]
[422672776,1779232235000,-628.54572099,0.00013698,2]
[422672826,1779232235000,-150.0,0.00013769,2]
[422672770,1779232235000,-150.0090512,0.00013698,2]
[422672816,1779232235000,-150.0,0.00013702,2]
[422672863,1779232235000,-12575.65911323,0.00013902,2]
[422672854,1779232235000,-500.0,0.00013889,2]
[422672855,1779232235000,-500.0,0.00013889,2]
[422672856,1779232235000,-500.0,0.00013889,2]
[422672862,1779232235000,-150.0,0.00013901,2]
[422672860,1779232235000,-6803.7659,0.0001389,2]
[422672857,1779232235000,-500.0,0.00013889,2]
[422672861,1779232235000,-150.0,0.00013896,2]
[422672859,1779232235000,-69728.9177,0.0001389,2]
[422672858,1779232235000,-4170.3749,0.0001389,2]
[422672864,1779232235000,-150.0,0.00013909,2]
[422672867,1779232235000,-150.0,0.00013936,2]
[422672852,1779232235000,-500.0,0.00013889,2]
[422672865,1779232235000,-150.0,0.00013916,2]
[422672871,1779232235000,-5442.1560489,0.00013954,2]
[422672874,1779232235000,-150.0,0.0001397,2]
[422672868,1779232235000,-150.0,0.00013937,2]
[422672869,1779232235000,-500.0,0.00013945,2]
[422672872,1779232235000,-150.0,0.00013956,2]
[422672870,1779232235000,-150.0,0.00013953,2]
[422672873,1779232235000,-150.0,0.00013956,2]
[422672877,1779232235000,-693.69606344,0.00013972,5]
[422672876,1779232235000,-1254.41808677,0.00013972,5]
[422672875,1779232235000,-735.11910194,0.00013972,5]
[422672878,1779232235000,-488.39471186,0.00013972,5]
[422672822,1779232235000,-150.0,0.0001376,2]
[422672866,1779232235000,-150.0,0.00013918,2]
[422672853,1779232235000,-500.0,0.00013889,2]
[422672781,1779232235000,-512.87,0.00013698,2]
[422672849,1779232235000,-500.0,0.00013889,2]
[422672827,1779232235000,-150.0,0.00013781,2]
[422672850,1779232235000,-500.0,0.00013889,2]
[422672823,1779232235000,-500.0,0.00013762,2]
[422672824,1779232235000,-150.0,0.00013763,2]
[422672825,1779232235000,-150.0,0.00013769,2]
[422672828,1779232235000,-150.0,0.00013787,2]
[422672829,1779232235000,-150.0,0.00013787,2]
[422672830,1779232235000,-12575.65911328,0.0001379,2]
[422672832,1779232235000,-5442.15604897,0.00013796,2]
[422672831,1779232235000,-215.15951567,0.00013791,2]
[422672839,1779232235000,-166.66,0.00013836,2]
[422672838,1779232235000,-150.0,0.00013832,2]
[422672837,1779232235000,-150.0,0.00013821,2]
[422672821,1779232235000,-150.0,0.00013746,2]
[422672835,1779232235000,-150.0,0.00013815,2]
[422672834,1779232235000,-1786.35,0.000138,2]
[422672836,1779232235000,-150.0,0.00013815,2]
[422672840,1779232235000,-2267.8,0.0001384,2]
[422672851,1779232235000,-500.0,0.00013889,2]
[422672841,1779232235000,-150.0,0.00013849,2]
[422672842,1779232235000,-150.0,0.00013862,2]
[422672844,1779232235000,-150.0,0.00013862,2]
[422672843,1779232235000,-150.0,0.00013862,2]
[422672845,1779232235000,-150.0,0.00013867,2]
[422672846,1779232235000,-150.0,0.00013884,2]
[422672848,1779232235000,-500.0,0.00013889,2]
[422672847,1779232235000,-500.0,0.00013889,2]
[422672833,1779232235000,-150.0,0.00013798,2]
[422672879,1779232236000,-1030.13421599,0.00013972,5]
[422672883,1779232236000,-150.0,0.00013987,2]
[422672884,1779232236000,-1030.37480659,0.0001399,2]
[422672880,1779232236000,-60.23782,0.00013972,5]
[422672881,1779232236000,-166.66,0.00013973,2]
[422672882,1779232236000,-150.0,0.00013987,2]
[422672913,1779232238000,-500.0,0.00013889,2]
[422672911,1779232238000,-272.73014883,0.00013889,2]
[422672912,1779232238000,-500.0,0.00013889,2]
[422672918,1779232238000,-150.0,0.00014003,2]
[422672914,1779232238000,-36063.55993714,0.0001399,2]
[422672908,1779232238000,-500.0,0.00013889,2]
[422672915,1779232238000,-2000.0,0.00013994,2]
[422672920,1779232238000,-150.0,0.00014012,2]
[422672929,1779232238000,-500.0,0.00014025,2]
[422672931,1779232238000,-500.0,0.00014025,2]
[422672930,1779232238000,-500.0,0.00014025,2]
[422672921,1779232238000,-12575.65911323,0.00014014,2]
[422672922,1779232238000,-150.0,0.00014022,2]
[422672924,1779232238000,-241.34087735,0.00014025,2]
[422672927,1779232238000,-150.0,0.00014025,2]
[422672928,1779232238000,-275.90692005,0.00014025,2]
[422672909,1779232238000,-500.0,0.00013889,2]
[422672919,1779232238000,-150.0,0.00014004,2]
[422672916,1779232238000,-250.0,0.00014,2]
[422672894,1779232238000,-500.0,0.00013889,2]
[422672917,1779232238000,-530.30207749,0.00014,2]
[422672887,1779232238000,-500.0,0.00013889,2]
[422672891,1779232238000,-500.0,0.00013889,2]
[422672886,1779232238000,-500.0,0.00013889,2]
[422672889,1779232238000,-500.0,0.00013889,2]
[422672888,1779232238000,-500.0,0.00013889,2]
[422672923,1779232238000,-150.0,0.00014025,2]
[422672898,1779232238000,-500.0,0.00013889,2]
[422672905,1779232238000,-500.0,0.00013889,2]
[422672904,1779232238000,-500.0,0.00013889,2]
[422672910,1779232238000,-500.0,0.00013889,2]
[422672895,1779232238000,-500.0,0.00013889,2]
[422672903,1779232238000,-500.0,0.00013889,2]
[422672893,1779232238000,-500.0,0.00013889,2]
[422672899,1779232238000,-500.0,0.00013889,2]
[422672902,1779232238000,-500.0,0.00013889,2]
[422672900,1779232238000,-500.0,0.00013889,2]
[422672896,1779232238000,-500.0,0.00013889,2]
[422672901,1779232238000,-500.0,0.00013889,2]
[422672907,1779232238000,-500.0,0.00013889,2]
[422672906,1779232238000,-500.0,0.00013889,2]
[422672897,1779232238000,-500.0,0.00013889,2]
[422672925,1779232238000,-150.0,0.00014025,2]
[422672934,1779232238000,-500.0,0.00014025,2]
[422672933,1779232238000,-500.0,0.00014025,2]
[422672965,1779232238000,-150.0,0.00014143,2]
[422672975,1779232238000,-150.0,0.00014162,2]
[422672969,1779232238000,-150.0,0.00014154,2]
[422672971,1779232238000,-150.0,0.00014159,2]
[422672967,1779232238000,-150.0,0.00014143,2]
[422672977,1779232238000,-150.0,0.00014169,2]
[422672986,1779232238000,-500.0,0.00014178,2]
[422672980,1779232238000,-150.0,0.00014177,2]
[422672955,1779232238000,-166.66,0.0001411,2]
[422672988,1779232238000,-500.0,0.00014178,2]
[422672989,1779232238000,-500.0,0.00014178,2]
[422672990,1779232238000,-500.0,0.00014178,2]
[422672926,1779232238000,-150.0,0.00014025,2]
[422672992,1779232238000,-150.0,0.0001419,2]
[422672994,1779232238000,-2500.0,0.00014208,2]
[422672993,1779232238000,-150.0,0.00014194,2]
[422672996,1779232238000,-274.12509003,0.00014209,2]
[422672995,1779232238000,-5000.0,0.00014208,2]
[422672983,1779232238000,-500.0,0.00014178,2]
[422672961,1779232238000,-150.0,0.0001413,2]
[422672991,1779232238000,-2267.8,0.00014186,2]
[422672959,1779232238000,-150.0,0.00014125,2]
[422672963,1779232238000,-150.0,0.00014142,2]
[422672932,1779232238000,-500.0,0.00014025,2]
[422672943,1779232238000,-150.0,0.0001405,2]
[422672935,1779232238000,-500.0,0.00014025,2]
[422672941,1779232238000,-500.0,0.00014036,2]
[422672944,1779232238000,-150.0,0.0001405,2]
[422672936,1779232238000,-500.0,0.00014025,2]
[422672937,1779232238000,-632.65490177,0.00014025,2]
[422672939,1779232238000,-597.79764243,0.00014025,2]
[422672947,1779232238000,-150.0,0.00014087,2]
[422672940,1779232238000,-150.0,0.00014033,2]
[422672942,1779232238000,-150.0,0.00014039,2]
[422672945,1779232238000,-150.0,0.00014056,2]
[422672948,1779232238000,-150.0,0.00014087,2]
[422672946,1779232238000,-150.0,0.00014073,2]
[422672949,1779232238000,-150.0,0.00014091,2]
[422672953,1779232238000,-150.0,0.00014108,2]
[422672951,1779232238000,-150.0,0.00014096,2]
[422672938,1779232238000,-500.0,0.00014025,2]
[422672957,1779232238000,-5442.1560489,0.00014111,2]
[422673097,1779232239000,-500.0,0.00014307,2]
[422673102,1779232239000,-500.0,0.00014307,2]
[422673100,1779232239000,-162.26603407,0.00014307,2]
[422673099,1779232239000,-500.0,0.00014307,2]
[422673103,1779232239000,-276.56058421,0.00014307,2]
[422673092,1779232239000,-500.0,0.00014307,2]
[422673094,1779232239000,-505.50097699,0.00014307,2]
[422673093,1779232239000,-500.0,0.00014307,2]
[422673088,1779232239000,-500.0,0.00014307,2]
[422673090,1779232239000,-500.0,0.00014307,2]
[422673087,1779232239000,-500.0,0.00014307,2]
[422673095,1779232239000,-500.0,0.00014307,2]
[422673101,1779232239000,-500.0,0.00014307,2]
[422673109,1779232239000,-500.0,0.00014307,2]
[422673096,1779232239000,-500.0,0.00014307,2]
[422673104,1779232239000,-500.0,0.00014307,2]
[422673114,1779232239000,-500.0,0.00014307,2]
[422673110,1779232239000,-500.0,0.00014307,2]
[422673112,1779232239000,-500.0,0.00014307,2]
[422673106,1779232239000,-500.0,0.00014307,2]
[422673107,1779232239000,-500.0,0.00014307,2]
[422673113,1779232239000,-500.0,0.00014307,2]
[422673108,1779232239000,-500.0,0.00014307,2]
[422673105,1779232239000,-607.92030629,0.00014307,2]
[422673116,1779232239000,-500.0,0.00014307,2]
[422673115,1779232239000,-500.0,0.00014307,2]
[422673089,1779232239000,-500.0,0.00014307,2]
[422673098,1779232239000,-500.0,0.00014307,2]
[422673111,1779232239000,-500.0,0.00014307,2]
[422673086,1779232239000,-500.0,0.00014307,2]
[422673080,1779232239000,-578.35435466,0.00014298,2]
[422673018,1779232239000,-539.56685334,0.00014274,2]
[422673019,1779232239000,-150.0,0.00014274,2]
[422673028,1779232239000,-500.0,0.00014274,2]
[422673021,1779232239000,-150.0,0.00014274,2]
[422673023,1779232239000,-256.32821497,0.00014274,2]
[422673022,1779232239000,-185.87830768,0.00014274,2]
[422673024,1779232239000,-500.0,0.00014274,2]
[422673026,1779232239000,-500.0,0.00014274,2]
[422673025,1779232239000,-500.0,0.00014274,2]
[422673030,1779232239000,-500.0,0.00014274,2]
[422673029,1779232239000,-500.0,0.00014274,2]
[422673034,1779232239000,-500.0,0.00014274,2]
[422673031,1779232239000,-500.0,0.00014274,2]
[422673036,1779232239000,-500.0,0.00014274,2]
[422673039,1779232239000,-500.0,0.00014274,2]
[422673035,1779232239000,-500.0,0.00014274,2]
[422673033,1779232239000,-500.0,0.00014274,2]
[422673032,1779232239000,-500.0,0.00014274,2]
[422673037,1779232239000,-500.0,0.00014274,2]
[422673020,1779232239000,-150.0,0.00014274,2]
[422673038,1779232239000,-500.0,0.00014274,2]
[422673027,1779232239000,-413.19836164,0.00014274,2]
[422673016,1779232239000,-500.0,0.00014274,2]
[422673084,1779232239000,-500.0,0.00014307,2]
[422672999,1779232239000,-990.20451191,0.00014212,2]
[422673001,1779232239000,-150.0,0.00014228,2]
[422673000,1779232239000,-468.33784303,0.00014222,2]
[422673002,1779232239000,-150.0,0.00014237,2]
[422673003,1779232239000,-150.0,0.00014237,2]
[422673004,1779232239000,-150.0,0.00014237,2]
[422672998,1779232239000,-150.0,0.00014211,2]
[422672997,1779232239000,-6516.06639182,0.00014209,2]
[422673005,1779232239000,-150.0,0.00014246,2]
[422673006,1779232239000,-166.66,0.00014247,2]
[422673008,1779232239000,-150.0,0.00014263,2]